fUSD/lending_fUSD_20250420
["ID","MTS","AMOUNT","RATE_DAILY","PERIOD"]
[358420735,1745113839242,-69.86597762,0.0001989,2]
[358420736,1745113839252,-151.0,0.0001989,2]
[358420737,1745113839262,-159.038333,0.0001989,2]
[358420738,1745113839272,-154.013231,0.0001989,2]
[358420739,1745113839282,-151.0,0.0001989,2]
[358420740,1745113839291,-151.0,0.0001989,2]
[358420741,1745113839301,-152.965001,0.0001989,2]
[358420742,1745113839310,-224.282795,0.0001989,2]
[358420743,1745113839319,-224.282795,0.0001989,2]
[358420744,1745113839329,-224.282795,0.0001989,2]
[358420745,1745113839339,-224.282795,0.0001989,2]
[358420746,1745113839348,-224.282795,0.0001989,2]
[358420747,1745113839357,-224.282795,0.0001989,2]
[358420748,1745113839366,-224.282795,0.0001989,2]
[358420749,1745113839377,-224.282795,0.0001989,2]
[358420750,1745113839389,-151.0,0.0001989,2]
[358420751,1745113839398,-151.0,0.0001989,2]
[358420752,1745113839408,-151.0,0.0001989,2]
[358420753,1745113839417,-151.0,0.0001989,2]
[358420754,1745113839426,-151.0,0.0001989,2]
[358420755,1745113839436,-151.0,0.0001989,2]
[358420756,1745113839445,-151.0,0.0001989,2]
[358420757,1745113839456,-151.0,0.0001989,2]
[358420758,1745113839465,-151.0,0.0001989,2]
[358420759,1745113839474,-151.0,0.0001989,2]
[358420760,1745113839484,-151.0,0.0001989,2]
[358420761,1745113839493,-162.301152,0.0001989,2]
[358420762,1745113839502,-151.0,0.0001989,2]
[358420763,1745113839511,-151.0,0.0001989,2]
[358420764,1745113839520,-151.0,0.0001989,2]
[358420765,1745113839529,-190.044027,0.0001989,2]
[358420766,1745113839539,-190.044027,0.0001989,2]
[358420767,1745113839548,-190.044027,0.0001989,2]
[358420768,1745113839557,-156.41272,0.0001989,2]
[358420769,1745113839568,-190.044027,0.0001989,2]
[358420770,1745113839578,-190.044027,0.0001989,2]
[358420771,1745113839588,-151.0,0.0001989,2]
[358420772,1745113839597,-190.044027,0.0001989,2]
[358420773,1745113839606,-151.0,0.0001989,2]
[358420774,1745113839615,-156.277777,0.0001989,2]
[358420775,1745113839624,-151.0,0.0001989,2]
[358420776,1745113839633,-151.0,0.0001989,2]
[358420777,1745113839642,-151.0,0.0001989,2]
[358420778,1745113839651,-151.0,0.0001989,2]
[358420779,1745113839660,-151.0,0.0001989,2]
[358420780,1745113839669,-151.0,0.0001989,2]
[358420781,1745113839678,-151.0,0.0001989,2]
[358420782,1745113839687,-223.766417,0.0001989,2]
[358420783,1745113839696,-1406.371359,0.0001989,2]
[358420784,1745113839705,-1406.371359,0.0001989,2]
[358420785,1745113839714,-1406.371359,0.0001989,2]
[358420786,1745113839723,-1406.371359,0.0001989,2]
[358420787,1745113839732,-1406.371359,0.0001989,2]
[358420788,1745113839741,-1406.371359,0.0001989,2]
[358420789,1745113839750,-151.0,0.0001989,2]
[358420790,1745113839759,-151.0,0.0001989,2]
[358420791,1745113839768,-151.0,0.0001989,2]
[358420792,1745113839778,-151.0,0.0001989,2]
[358420793,1745113839787,-151.0,0.0001989,2]
[358420794,1745113839796,-151.0,0.0001989,2]
[358420795,1745113839805,-225.855776,0.0001989,2]
[358420796,1745113839814,-151.0,0.0001989,2]
[358420797,1745113839823,-151.0,0.0001989,2]
[358420798,1745113839833,-151.0,0.0001989,2]
[358420799,1745113839842,-151.0,0.0001989,2]
[358420800,1745113839850,-151.0,0.0001989,2]
[358420801,1745113839859,-151.0,0.0001989,2]
[358420802,1745113839869,-151.0,0.0001989,2]
[358420803,1745113839878,-151.0,0.0001989,2]
[358420804,1745113839891,-151.0,0.0001989,2]
[358420805,1745113839900,-151.0,0.0001989,2]
[358420806,1745113839909,-151.0,0.0001989,2]
[358420807,1745113839919,-151.0,0.0001989,2]
[358420808,1745113839928,-151.0,0.0001989,2]
[358420809,1745113839938,-169.917275,0.0001989,2]
[358420810,1745113839947,-151.0,0.0001989,2]
[358420811,1745113839956,-153.857436,0.0001989,2]
[358420812,1745113839966,-151.0,0.0001989,2]
[358420813,1745113839976,-151.0,0.0001989,2]
[358420814,1745113839987,-151.0,0.0001989,2]
[358420815,1745113839998,-151.0,0.0001989,2]
[358420816,1745113840007,-153.058453,0.0001989,2]
[358420817,1745113840017,-153.058453,0.0001989,2]
[358420818,1745113840026,-153.848874,0.0001989,2]
[358420819,1745113840035,-153.058453,0.0001989,2]
[358420820,1745113840045,-153.058453,0.0001989,2]
[358420821,1745113840055,-153.058453,0.0001989,2]
[358420822,1745113840064,-153.058453,0.0001989,2]
[358420823,1745113840074,-153.058453,0.0001989,2]
[358420824,1745113840083,-153.058453,0.0001989,2]
[358420825,1745113840093,-151.0,0.0001989,2]
[358420826,1745113840103,-151.0,0.0001989,2]
[358420827,1745113840112,-151.0,0.0001989,2]
[358420828,1745113840121,-151.0,0.0001989,2]
[358420829,1745113840131,-151.0,0.0001989,2]
[358420830,1745113840140,-154.268446,0.0001989,2]
[358420831,1745113840150,-151.0,0.0001989,2]
[358420832,1745113840160,-151.0,0.0001989,2]
[358420833,1745113840169,-151.0,0.0001989,2]
[358420834,1745113840179,-190.468703,0.0001989,2]
[358420835,1745113840188,-240.323686,0.0001989,2]
[358420836,1745113840197,-151.0,0.0001989,2]
[358420837,1745113840207,-178.813267,0.0001989,2]
[358420838,1745113840216,-180.516216,0.0001989,2]
[358420839,1745113840225,-180.516216,0.0001989,2]
[358420840,1745113840234,-180.516216,0.0001989,2]
[358420841,1745113840243,-180.516216,0.0001989,2]
[358420842,1745113840253,-180.516216,0.0001989,2]
[358420843,1745113840262,-180.516216,0.0001989,2]
[358420844,1745113840271,-180.516216,0.0001989,2]
[358420845,1745113840282,-180.516216,0.0001989,2]
[358420846,1745113840291,-151.0,0.0001989,2]
[358420847,1745113840300,-151.0,0.0001989,2]
[358420848,1745113840309,-151.0,0.0001989,2]
[358420849,1745113840318,-163.053404,0.0001989,2]
[358420850,1745113840327,-151.0,0.0001989,2]
[358420851,1745113840336,-151.0,0.0001989,2]
[358420853,1745113840346,-151.0,0.0001989,2]
[358420854,1745113840356,-151.0,0.0001989,2]
[358420855,1745113840454,-151.0,0.0001989,2]
[358420856,1745113840466,-151.0,0.0001989,2]
[358420857,1745113840476,-185.37226,0.0001989,2]
[358420858,1745113840486,-167.769579,0.00019891,2]
[358420859,1745113840495,-158.986432,0.00019891,2]
[358420860,1745113840503,-151.0,0.00019891,2]
[358420861,1745113840513,-154.253834,0.00019891,2]
[358420862,1745113840522,-151.0,0.00019891,2]
[358420863,1745113840532,-151.0,0.00019891,2]
[358420864,1745113840541,-151.0,0.00019891,2]
[358420865,1745113840550,-251.166871,0.00019891,2]
[358420866,1745113840560,-155.763684,0.00019891,2]
[358420867,1745113840569,-158.367833,0.00019891,2]
[358420868,1745113840578,-151.0,0.00019891,2]
[358420869,1745113840587,-155.814178,0.00019891,2]
[358420870,1745113840596,-151.0,0.00019891,2]
[358420871,1745113840605,-151.0,0.00019891,2]
[358420872,1745113840614,-263.965485,0.00019891,2]
[358420873,1745113840623,-161.435907,0.00019891,2]
[358420874,1745113840632,-167.662563,0.00019891,2]
[358420875,1745113840641,-172.039448,0.00019891,2]
[358420876,1745113840651,-251.188609,0.00019891,2]
[358420877,1745113840660,-251.188609,0.00019891,2]
[358420878,1745113840670,-251.188609,0.00019891,2]
[358420879,1745113840679,-251.188609,0.00019891,2]
[358420880,1745113840691,-278.38015,0.00019891,2]
[358420881,1745113840701,-278.38015,0.00019891,2]
[358420882,1745113840711,-278.38015,0.00019891,2]
[358420883,1745113840722,-278.38015,0.00019891,2]
[358420884,1745113840731,-151.0,0.00019891,2]
[358420885,1745113840739,-151.0,0.00019891,2]
[358420886,1745113840748,-151.0,0.00019891,2]
[358420887,1745113840757,-151.0,0.00019891,2]
[358420888,1745113840767,-151.0,0.00019891,2]
[358420889,1745113840776,-153.154766,0.00019891,2]
[358420890,1745113840785,-151.0,0.00019891,2]
[358420891,1745113840794,-162.240081,0.00019891,2]
[358420892,1745113840803,-151.0,0.00019891,2]
[358420893,1745113840812,-275.632255,0.00019891,2]
[358420894,1745113840821,-224.282795,0.00019891,2]
[358420895,1745113840830,-224.282795,0.00019891,2]
[358420896,1745113840840,-224.282795,0.00019891,2]
[358420897,1745113840851,-224.282795,0.00019891,2]
[358420898,1745113840863,-151.0,0.00019891,2]
[358420899,1745113840873,-289.632389,0.00019891,2]
[358420900,1745113840883,-151.0,0.00019891,2]
[358420901,1745113840891,-151.0,0.00019891,2]
[358420902,1745113840901,-190.044027,0.00019891,2]
[358420903,1745113840910,-190.044027,0.00019891,2]
[358420904,1745113840919,-151.0,0.00019891,2]
[358420905,1745113840928,-151.0,0.00019891,2]
[358420906,1745113840938,-1406.371359,0.00019891,2]
[358420907,1745113840947,-1406.371359,0.00019891,2]
[358420908,1745113840957,-151.0,0.00019891,2]
[358420909,1745113840966,-167.807441,0.00019891,2]
[358420910,1745113840975,-252.74492,0.00019891,2]
[358420911,1745113840984,-151.0,0.00019891,2]
[358420912,1745113840994,-151.0,0.00019891,2]
[358420913,1745113841009,-163.518252,0.00019891,2]
[358420914,1745113841027,-151.0,0.00019891,2]
[358420915,1745113841046,-151.0,0.00019891,2]
[358420916,1745113841066,-153.058453,0.00019891,2]
[358420917,1745113841081,-153.058453,0.00019891,2]
[358420918,1745113841100,-153.058453,0.00019891,2]
[358420919,1745113841121,-153.058453,0.00019891,2]
[358420920,1745113841140,-151.0,0.00019891,2]
[358420921,1745113841158,-151.0,0.00019891,2]
[358420922,1745113841176,-180.516216,0.00019891,2]
[358420923,1745113841192,-180.516216,0.00019891,2]
[358420924,1745113841205,-180.516216,0.00019891,2]
[358420926,1745113841224,-180.516216,0.00019891,2]
[358420927,1745113841238,-158.19036,0.00019892,2]
[358420928,1745113841257,-151.0,0.00019892,2]
[358420929,1745113841271,-251.188609,0.00019892,2]
[358420930,1745113841286,-251.188609,0.00019892,2]
[358420931,1745113841302,-278.38015,0.00019892,2]
[358420932,1745113841317,-278.38015,0.00019892,2]
[358420933,1745113841332,-151.0,0.00019892,2]
[358420934,1745113841347,-151.0,0.00019892,2]
[358420935,1745113841362,-224.282795,0.00019892,2]
[358420936,1745113841379,-224.282795,0.00019892,2]
[358420937,1745113841394,-151.0,0.00019892,2]
[358420938,1745113841409,-243.471084,0.00019892,2]
[358420939,1745113841424,-151.0,0.00019892,2]
[358420940,1745113841439,-190.044027,0.00019892,2]
[358420941,1745113841454,-190.044027,0.00019892,2]
[358420942,1745113841469,-293.481063,0.00019892,2]
[358420943,1745113841483,-1406.371359,0.00019892,2]
[358420944,1745113841497,-1406.371359,0.00019892,2]
[358420945,1745113841511,-151.0,0.00019892,2]
[358420946,1745113841525,-151.0,0.00019892,2]
[358420947,1745113841541,-195.264374,0.00019892,2]
[358420948,1745113841555,-180.516216,0.00019892,2]
[358420949,1745113841570,-180.516216,0.00019892,2]
[358420950,1745113841584,-157.538298,0.00019894,2]
[358420951,1745113841598,-153.180779,0.00019894,2]
[358420952,1745113841614,-153.978114,0.00019894,2]
[358420953,1745113841628,-153.229086,0.00019894,2]
[358420954,1745113841642,-151.0,0.00019894,2]
[358420955,1745113841657,-251.188609,0.00019894,2]
[358420956,1745113841672,-251.188609,0.00019894,2]
[358420957,1745113841687,-278.38015,0.00019894,2]
[358420958,1745113841703,-278.38015,0.00019894,2]
[358420959,1745113841718,-177.046492,0.00019894,2]
[358420960,1745113841734,-151.0,0.00019894,2]
[358420961,1745113841750,-151.0,0.00019894,2]
[358420962,1745113841766,-224.282795,0.00019894,2]
[358420963,1745113841781,-224.282795,0.00019894,2]
[358420964,1745113841797,-151.0,0.00019894,2]
[358420965,1745113841812,-151.0,0.00019894,2]
[358420966,1745113841827,-190.044027,0.00019894,2]
[358420967,1745113841842,-190.044027,0.00019894,2]
[358420968,1745113841857,-1406.371359,0.00019894,2]
[358420969,1745113841873,-1406.371359,0.00019894,2]
[358420970,1745113841981,-154.189713,0.00019894,2]
[358420971,1745113842028,-151.0,0.00019894,2]
[358420972,1745113842038,-180.516216,0.00019894,2]
[358420973,1745113842048,-180.516216,0.00019894,2]
[358420974,1745113842057,-151.0,0.00019895,2]
[358420975,1745113842067,-251.188609,0.00019895,2]
[358420976,1745113842076,-251.188609,0.00019895,2]
[358420977,1745113842085,-278.38015,0.00019895,2]
[358420978,1745113842094,-278.38015,0.00019895,2]
[358420979,1745113842103,-195.898929,0.00019895,2]
[358420980,1745113842112,-151.0,0.00019895,2]
[358420981,1745113842122,-151.0,0.00019895,2]
[358420982,1745113842131,-224.282795,0.00019895,2]
[358420983,1745113842140,-224.282795,0.00019895,2]
[358420984,1745113842149,-224.282795,0.00019895,2]
[358420985,1745113842159,-224.282796,0.00019895,2]
[358420986,1745113842168,-151.0,0.00019895,2]
[358420987,1745113842177,-151.0,0.00019895,2]
[358420988,1745113842186,-190.044027,0.00019895,2]
[358420989,1745113842195,-190.044027,0.00019895,2]
[358420990,1745113842205,-1406.371359,0.00019895,2]
[358420991,1745113842214,-1406.371359,0.00019895,2]
[358420992,1745113842224,-153.058453,0.00019895,2]
[358420993,1745113842233,-153.058453,0.00019895,2]
[358420994,1745113842243,-164.06131,0.00019897,2]
[358420995,1745113842252,-251.188609,0.00019897,2]
[358420996,1745113842261,-251.188609,0.00019897,2]
[358420997,1745113842271,-278.38015,0.00019897,2]
[358420998,1745113842280,-278.38015,0.00019897,2]
[358420999,1745113842290,-269.408812,0.00019897,2]
[358421000,1745113842299,-151.0,0.00019897,2]
[358421001,1745113842308,-195.990601,0.00019897,2]
[358421002,1745113842318,-190.044027,0.00019897,2]
[358421003,1745113842327,-190.044027,0.00019897,2]
[358421004,1745113842336,-1406.371359,0.00019897,2]
[358421005,1745113842345,-1406.371359,0.00019897,2]
[358421006,1745113842356,-151.0,0.00019897,2]
[358421007,1745113842366,-153.058453,0.00019897,2]
[358421008,1745113842375,-153.058453,0.00019897,2]
[358421009,1745113842387,-180.516216,0.00019897,2]
[358421010,1745113842396,-180.516216,0.00019897,2]
[358421011,1745113842406,-251.188609,0.00019898,2]
[358421012,1745113842415,-251.188614,0.00019898,2]
[358421013,1745113842426,-278.38015,0.00019898,2]
[358421014,1745113842435,-278.380144,0.00019898,2]
[358421015,1745113842444,-296.125388,0.00019898,2]
[358421016,1745113842453,-180.516216,0.00019898,2]
[358421017,1745113842463,-180.516215,0.00019898,2]
[358421018,1745113842473,-169.196,0.000199,2]
[358421019,1745113842482,-2251.5259,0.000199,2]
[358421020,1745113842491,-151.0,0.000199,2]
[358421021,1745113842500,-151.0,0.000199,2]
[358421022,1745113842509,-190.044027,0.000199,2]
[358421023,1745113842518,-190.044027,0.000199,2]
[358421024,1745113842528,-190.044027,0.000199,2]
[358421025,1745113842537,-190.044022,0.000199,2]
[358421026,1745113842547,-7101.2132053,0.000199,2]
[358421027,1745113842556,-1406.371359,0.000199,2]
[358421028,1745113842565,-1406.371359,0.000199,2]
[358421029,1745113842574,-1406.371359,0.000199,2]
[358421030,1745113842583,-1406.371357,0.000199,2]
[358421031,1745113842592,-163.7430739,0.000199,2]
[358421032,1745113842601,-153.058453,0.000199,2]
[358421033,1745113842610,-153.058453,0.000199,2]
[358421034,1745113842619,-153.058453,0.000199,2]
[358421035,1745113842628,-153.058456,0.000199,2]
[358421036,1745113842638,-480.54076322,0.000199,2]
[358421037,1745113842647,-242.14,0.00019969,2]
[358421038,1745113842656,-235.0,0.00019973,2]
[358421039,1745113842666,-505.25862921,0.00019973,2]
[358421040,1745113842675,-502.07275401,0.00019973,2]
[358421041,1745113842684,-500.0,0.00019973,2]
[358421042,1745113842693,-302.63370147,0.00019973,2]
[358421043,1745113842702,-554.47798272,0.00019973,2]
[358421044,1745113842712,-509.9944768,0.00019973,2]
[358421045,1745113842721,-1356.133,0.0001998,2]
[358421046,1745113842731,-2090.507,0.0001998,2]
[358421047,1745113842740,-822.0,0.0001998,2]
[358421048,1745113842749,-1379.158,0.0001998,2]
[358421049,1745113842758,-581.077,0.0001998,2]
[358421050,1745113842768,-1441.0,0.0001998,2]
[358421051,1745113842777,-925.386,0.0001998,2]
[358421052,1745113842787,-585.026,0.0001998,2]
[358421053,1745113842796,-2260.214,0.0001998,2]
[358421054,1745113842805,-158.763,0.0001998,2]
[358421055,1745113842815,-151.0,0.0001998,2]
[358421056,1745113842824,-151.0,0.0001998,2]
[358421057,1745113842833,-152.788256,0.0001998,2]
[358421058,1745113842842,-151.0,0.00019986,2]
[358421059,1745113842852,-151.0,0.00019986,2]
[358421060,1745113842861,-154.326532,0.00019986,2]
[358421061,1745113842870,-151.0,0.00019986,2]
[358421062,1745113842880,-151.0,0.00019986,2]
[358421063,1745113842889,-162.909005,0.00019986,2]
[358421064,1745113842898,-154.235712,0.00019986,2]
[358421065,1745113842907,-151.0,0.00019986,2]
[358421066,1745113842916,-151.0,0.00019986,2]
[358421067,1745113842925,-157.071882,0.00019986,2]
[358421068,1745113842934,-151.0,0.00019986,2]
[358421069,1745113842944,-151.0,0.00019986,2]
[358421070,1745113842953,-151.0,0.00019986,2]
[358421071,1745113842963,-151.0,0.00019986,2]
[358421072,1745113842972,-151.0,0.00019986,2]
[358421073,1745113842981,-214.08783,0.00019986,2]
[358421074,1745113842991,-151.0,0.00019986,2]
[358421075,1745113843000,-151.0,0.00019986,2]
[358421076,1745113843009,-292.601199,0.00019986,2]
[358421077,1745113843018,-171.024971,0.00019986,2]
[358421078,1745113843027,-151.0,0.00019986,2]
[358421079,1745113843037,-151.0,0.00019986,2]
[358421080,1745113843046,-151.0,0.00019986,2]
[358421081,1745113843055,-151.0,0.00019986,2]
[358421082,1745113843064,-151.0,0.00019986,2]
[358421083,1745113843075,-159.548486,0.00019986,2]
[358421084,1745113843084,-151.0,0.00019986,2]
[358421085,1745113843093,-151.0,0.00019986,2]
[358421086,1745113843102,-151.0,0.00019986,2]
[358421087,1745113843111,-151.0,0.00019986,2]
[358421088,1745113843120,-151.0,0.00019986,2]
[358421089,1745113843130,-151.0,0.00019986,2]
[358421090,1745113843140,-186.359438,0.00019986,2]
[358421092,1745113843150,-151.0,0.00019986,2]
[358421093,1745113843160,-151.0,0.00019986,2]
[358421094,1745113843171,-151.0,0.00019986,2]
[358421095,1745113843179,-151.0,0.00019986,2]
[358421096,1745113843189,-151.0,0.00019986,2]
[358421097,1745113843198,-151.0,0.00019986,2]
[358421098,1745113843208,-371.859463,0.00019986,2]
[358421099,1745113843218,-1306.991564,0.00019986,2]
[358421100,1745113843227,-1298.6035294,0.00019986,2]
[358421101,1745113843236,-415.9816407,0.00019986,2]
[358421102,1745113843246,-1417.6431239,0.00019986,2]
[358421103,1745113843256,-1588.20284495,0.0001999,2]
[358421104,1745113843266,-151.0,0.0001999,2]
[358421105,1745113843276,-154.467059,0.0001999,2]
[358421106,1745113843285,-158.62099,0.0001999,2]
[358421107,1745113843295,-151.0,0.0001999,2]
[358421108,1745113843304,-151.0,0.0001999,2]
[358421109,1745113843315,-151.0,0.0001999,2]
[358421110,1745113843324,-246.56394872,0.0001999,2]
[358421111,1745113843334,-246.56394872,0.0001999,2]
[358421112,1745113843344,-246.56394872,0.0001999,2]
[358421113,1745113843356,-102987.2669321,0.0002,2]
[358421114,1745113843743,-775.44461026,0.0002,2]
[358421115,1745113843755,-5881.25307899,0.0002,2]
[358421116,1745113843819,-4108.3547939,0.0002,2]
[358421117,1745113843830,-401.12846261,0.0002,2]
[358421118,1745113843841,-624.1476786,0.0002,2]
[358421119,1745113843857,-364.04259866,0.0002,2]
[358421120,1745113843870,-1296.4560435,0.0002,2]
[358421121,1745113843889,-337380.45629023,0.0002,2]
[358421122,1745113843898,-219368.06047066,0.0002,2]
[358421123,1745113843909,-2281.87364935,0.0002,2]
[358421124,1745113843920,-4175.80824354,0.0002,2]
[358421125,1745113843943,-459.61762194,0.0002,2]
[358421127,1745113843954,-6156.45188761,0.0002,2]
[358421129,1745113843965,-5747.74016914,0.0002,2]
[358421131,1745113843976,-9186.50881033,0.0002,2]
[358421133,1745113843987,-1037.35002977,0.0002,2]
[358421139,1745113844325,-727.422622,0.0002,2]
[358421140,1745113844418,-522.91188455,0.0002,2]
[358421141,1745113844432,-5457.6384273,0.0002,2]
[358421142,1745113844455,-5357.49745561,0.0002,2]
[358421169,1745113847448,-1000.0,0.00019598,2]
[358421170,1745113942404,515.74707213,0.00048374,120]
[358421171,1745113957992,5486.71826451,0.00048374,120]
[358421172,1745114003772,450.0,0.00017,2]
[358421173,1745114004788,500.0,0.00019,2]
[358421174,1745114006363,411.02,0.0001934,2]
[358421175,1745114043517,2229.52,0.00019383,2]
[358421176,1745114045959,568.37851955,0.00048374,120]
[358421177,1745114101015,691.46,0.00019325,2]
[358421178,1745114130247,951.12,0.00019322,2]
[358421179,1745114159950,798.2,0.0001999,3]
[358421180,1745114188565,447.56278759,0.00042999,31]
[358421181,1745114224788,345.72501046,0.00048374,120]
[358421182,1745114236976,160.65,0.00043603,30]
[358421183,1745114237008,187.78,0.0001538,2]
[358421184,1745114237306,187.78,0.00016918,2]
[358421185,1745114237531,187.78,0.00018456,2]
[358421186,1745114298364,2324.3,0.00019185,2]
[358421187,1745114301294,150.0,0.00041095,120]
[358421188,1745114301510,277.52387833,0.00042465,120]
[358421189,1745114337493,200.0,0.00019136,2]
[358421190,1745114370562,150.0,0.00019088,2]
[358421191,1745114380515,182.763,0.000372,47]
[358421192,1745114450695,2635.06,0.00019087,2]
[358421193,1745114453827,1000.0,0.00019087,2]
[358421194,1745114456265,806.2,0.00019087,2]
[358421195,1745114475629,382.96,0.00043324,30]
[358421196,1745114476535,178.88,0.00043324,30]
[358421197,1745114477300,161.0,0.00043324,30]
[358421198,1745114477357,370.13,0.00043324,30]
[358421199,1745114477389,165.35,0.00043324,30]
[358421200,1745114527312,150.0,0.00019093,2]
[358421201,1745114533256,826.0,0.00042,120]
[358421202,1745114537531,150.0,0.00043324,30]
[358421203,1745114537786,350.24,0.00043324,30]
[358421204,1745114537822,161.01,0.00043324,30]
[358421205,1745114538970,150.0,0.00043324,30]
[358421206,1745114596416,161.01,0.00043324,30]
[358421207,1745114596906,150.0,0.00043324,30]
[358421208,1745114597265,150.0,0.00043324,30]
[358421209,1745114600312,350.24,0.00043324,30]
[358421210,1745114605686,500.0,0.00018909,2]
[358421211,1745114640577,159.00800791,0.00048364,120]
[358421212,1745114657437,161.01,0.00043324,30]
[358421213,1745114657974,348.52,0.00043324,30]
[358421214,1745114658089,150.0,0.00043324,30]
[358421215,1745114717273,161.01,0.00043324,30]
[358421216,1745114733657,1723.4,0.00016987,2]
[358421217,1745114733890,1723.4,0.00019251,2]
[358421219,1745114775836,161.01,0.00043324,30]
[358421220,1745114776540,150.0,0.00043324,30]
[358421221,1745114781342,309.48,0.00018907,2]
[358421222,1745114832087,-300.0,0.00019597,2]
[358421223,1745114832108,-250.0,0.00019597,2]
[358421224,1745114832130,-1049.19834408,0.00019598,2]
[358421225,1745114835498,781.87,0.00018921,2]
[358421226,1745114837242,161.01,0.00043324,30]
[358421227,1745114837701,150.0,0.00043324,30]
[358421228,1745114839115,-6584.04528102,0.00019598,2]
[358421229,1745114859369,23900.0,0.00018941,2]
[358421230,1745114897089,150.0,0.00043324,30]
[358421233,1745114919285,150.0,0.00019002,7]
[358421234,1745114923804,161.01,0.00043324,30]
[358421235,1745114956918,157.77,0.00043324,30]
[358421236,1745114957615,150.0,0.00043324,30]
[358421237,1745114980471,183.72,0.00019243,2]
[358421238,1745115001166,1000.0,0.00042466,120]
[358421239,1745115017083,150.0,0.00043324,30]
[358421243,1745115031508,-406.59,0.00019661,2]
[358421244,1745115031518,-250.0,0.0001971,2]
[358421245,1745115031528,-166.7,0.00019759,2]
[358421246,1745115031538,-2017.18319302,0.00019763,2]
[358421247,1745115031549,-669.42990698,0.00019763,2]
[358421248,1745115031559,-358.96586539,0.00019773,2]
[358421249,1745115031568,-311.56421329,0.00019773,2]
[358421250,1745115031579,-197.14814934,0.00019773,2]
[358421251,1745115031589,-500.0,0.00019773,2]
[358421252,1745115031599,-350.55089011,0.00019773,2]
[358421253,1745115031608,-505.57290175,0.00019773,2]
[358421254,1745115031618,-605.76036727,0.00019773,2]
[358421255,1745115031627,-509.4836175,0.00019773,2]
[358421256,1745115031637,-500.0,0.00019773,2]
[358421257,1745115031646,-163.52355992,0.00019799,2]
[358421258,1745115031655,-300.0,0.00019799,2]
[358421259,1745115031664,-466.46986229,0.00019799,2]
[358421260,1745115031676,-383.53013771,0.00019799,2]
[358421261,1745115031686,-204.63916259,0.000198,2]
[358421262,1745115031701,-595.39054192,0.000198,2]
[358421263,1745115031713,-4873.03523845,0.000198,2]
[358421264,1745115031769,-7538.41011593,0.000198,2]
[358421265,1745115031780,-445.49189213,0.000198,2]
[358421266,1745115031792,-6369.68722798,0.000198,2]
[358421267,1745115031803,-298.695,0.000198,2]
[358421268,1745115031814,-504.42,0.000198,2]
[358421270,1745115031845,-7123.02473445,0.000198,2]
[358421273,1745115031856,-361.21122852,0.000198,2]
[358421275,1745115031868,-912.22240164,0.000198,2]
[358421277,1745115031883,-3830.40504496,0.000198,2]
[358421279,1745115031895,-4911.16061818,0.000198,2]
[358421282,1745115031906,-328.52693776,0.000198,2]
[358421284,1745115031918,-1399.93190357,0.000198,2]
[358421289,1745115032013,-257.10821505,0.000198,2]
[358421290,1745115032024,-3961.71183292,0.000198,2]
[358421294,1745115037684,-603.465158,0.000198,2]